bitfinex/quotes_BTCUSD_20240605
["timestamp","ask_amount","ask_price","bid_price","bid_amount"]
[1717562550331,0.29999547,71184.0,71183.0,0.015946]
[1717562551155,0.05951447,71184.0,71183.0,0.015946]
[1717562558076,0.19999547,71184.0,71183.0,0.015946]
[1717562559336,0.21999547,71184.0,71183.0,0.015946]
[1717562559888,0.31999547,71184.0,71183.0,0.015946]
[1717562562770,0.31982639,71184.0,71183.0,0.015946]
[1717562563342,0.40252639,71184.0,71183.0,0.015946]
[1717562563539,0.56892639,71184.0,71183.0,0.015946]
[1717562566065,0.66892639,71184.0,71183.0,0.015946]
[1717562567734,0.94988839,71184.0,71183.0,0.015946]
[1717562569902,1.37526932,71184.0,71183.0,0.015946]
[1717562570332,1.57526932,71184.0,71183.0,0.015946]
[1717562570798,1.57526932,71184.0,71183.0,0.000946]
[1717562570799,1.57426932,71184.0,71183.0,0.000946]
[1717562571235,1.57426932,71184.0,71183.0,0.008946]
[1717562571445,0.00497891,71184.0,71183.0,0.14999445]
[1717562571646,0.00497891,71184.0,71183.0,0.97319538]
[1717562571865,0.002,71184.0,71183.0,0.97319538]
[1717562572107,0.08906,71206.0,71184.0,0.02]
[1717562572108,0.05336648,71193.0,71184.0,0.02]
[1717562572315,0.05336648,71193.0,71192.0,0.377665]
[1717562572521,0.05336648,71193.0,71192.0,0.62208393]
[1717562572736,0.05336648,71193.0,71192.0,0.98623681]
[1717562574037,0.001,71193.0,71192.0,1.01423681]
[1717562575674,0.05436648,71193.0,71192.0,1.01423681]
[1717562575870,0.001,71193.0,71192.0,1.01423681]
[1717562578582,0.05436648,71193.0,71192.0,1.01423681]
[1717562578783,0.05436648,71193.0,71192.0,0.94138836]
[1717562579142,0.05436648,71193.0,71192.0,1.01420671]
[1717562579596,0.001,71193.0,71192.0,1.01420671]
[1717562579975,0.001,71193.0,71192.0,1.29513671]
[1717562580217,0.001,71193.0,71192.0,1.48563671]
[1717562580430,0.001,71193.0,71192.0,1.52729357]
[1717562580635,0.04936648,71202.0,71201.0,0.140447]
[1717562580829,0.04936648,71202.0,71201.0,0.31326535]
[1717562581638,0.04936648,71202.0,71201.0,0.17281835]
[1717562581976,0.04936648,71202.0,71201.0,0.07281835]
[1717562582182,0.04936648,71200.0,71199.0,0.07281811]
[1717562582379,0.04936648,71200.0,71199.0,0.0728183]
[1717562583533,0.04936648,71200.0,71199.0,0.0778183]
[1717562584592,0.04936648,71200.0,71199.0,0.0848183]
[1717562586159,0.04936648,71200.0,71199.0,0.2252693]
[1717562586382,0.04936648,71200.0,71199.0,0.3252693]
[1717562588435,0.04936648,71200.0,71199.0,0.1848183]
[1717562588781,0.04936648,71200.0,71199.0,0.3252693]
[1717562589213,0.07222824,71202.0,71199.0,0.3252693]
[1717562589214,0.00086,71206.0,71205.0,0.140439]
[1717562589440,0.00086,71206.0,71205.0,0.400939]
[1717562591410,0.00086,71206.0,71205.0,0.412939]
[1717562591631,0.00086,71206.0,71205.0,0.422939]
[1717562591857,0.05022648,71206.0,71205.0,0.422939]
[1717562592041,0.00086,71206.0,71205.0,0.412939]
[1717562592519,0.00086,71206.0,71205.0,0.414939]
[1717562592910,0.00086,71206.0,71205.0,0.428939]
[1717562594027,0.00086,71206.0,71205.0,0.57335793]
[1717562595430,0.05022648,71206.0,71205.0,0.57335793]
[1717562595840,0.05022648,71206.0,71205.0,0.41285793]
[1717562596061,0.05022648,71206.0,71205.0,0.48105793]
[1717562596268,0.05022648,71206.0,71205.0,0.268439]
[1717562596474,0.15022648,71206.0,71205.0,0.128]
[1717562596672,0.38622648,71206.0,71205.0,0.128]
[1717562597890,0.38622648,71206.0,71205.0,0.028]
[1717562598327,0.38622648,71206.0,71205.0,0.014]
[1717562598675,0.38622648,71206.0,71205.0,0.025]
[1717562598888,0.38622648,71206.0,71205.0,0.011]
[1717562599057,0.38622648,71206.0,71205.0,0.024]
[1717562602811,1.35621548,71206.0,71205.0,0.024]
[1717562603346,1.20101548,71206.0,71205.0,0.024]
[1717562603541,1.12021548,71206.0,71205.0,0.024]
[1717562610973,0.42021548,71206.0,71205.0,0.024]
[1717562615706,0.42021548,71206.0,71205.0,0.024]
[1717562620795,0.42021548,71206.0,71205.0,0.08643614]
[1717562621070,0.42107548,71206.0,71205.0,0.08643614]
[1717562626129,0.42107548,71206.0,71205.0,0.18643614]
[1717562626244,0.42107548,71206.0,71205.0,0.33873614]
[1717562627539,0.42107548,71206.0,71205.0,0.47917514]
[1717562628712,1.62320641,71206.0,71205.0,0.06582213]
[1717562628916,1.62320641,71206.0,71205.0,0.024]
[1717562629360,1.95143685,71206.0,71205.0,0.024]
[1717562629592,1.90954413,71206.0,71205.0,0.013]
[1717562629774,1.95162777,71206.0,71205.0,0.013]
[1717562629970,0.74133,71203.0,71202.0,0.000946]
[1717562630188,1.19574893,71203.0,71202.0,0.000946]
[1717562631812,1.19774893,71203.0,71202.0,0.001946]
[1717562632396,1.19774893,71203.0,71202.0,0.002946]
[1717562632397,1.20074893,71203.0,71202.0,0.002946]
[1717562633715,1.00074893,71203.0,71202.0,0.002946]
[1717562634303,1.20074893,71203.0,71202.0,0.002946]
[1717562634702,1.48163593,71203.0,71202.0,0.002946]
[1717562639254,1.21343593,71203.0,71202.0,0.002946]
[1717562639425,1.28163593,71203.0,71202.0,0.002946]
[1717562640216,1.27863593,71203.0,71202.0,0.001946]
[1717562640630,1.27863593,71203.0,71202.0,0.000946]
[1717562641103,1.28063593,71203.0,71202.0,0.000946]
[1717562641510,1.27863593,71203.0,71202.0,0.000946]
[1717562642049,1.28063593,71203.0,71202.0,0.000946]
[1717562642864,1.21243593,71203.0,71202.0,0.000946]
[1717562643246,1.48063593,71203.0,71202.0,0.000946]
[1717562643453,1.28063593,71203.0,71202.0,0.000946]
[1717562643662,1.83375117,71203.0,71202.0,0.000946]
[1717562644577,1.56152293,71203.0,71202.0,0.000946]
[1717562645555,1.76152293,71203.0,71202.0,0.000946]
[1717562649072,1.56152293,71203.0,71202.0,0.000946]
[1717562652485,1.76152293,71203.0,71202.0,0.000946]
[1717562654908,1.75952293,71203.0,71202.0,0.000946]
[1717562655127,1.75752293,71203.0,71202.0,0.000946]
[1717562655296,1.76152293,71203.0,71202.0,0.002946]
[1717562655579,1.75952293,71203.0,71202.0,0.001946]
[1717562656208,1.76152293,71203.0,71202.0,0.002946]
[1717562658246,1.76698612,71203.0,71202.0,0.002946]
[1717562667321,1.86698612,71203.0,71202.0,0.002946]
[1717562667522,1.67193752,71203.0,71202.0,0.002946]
[1717562667726,1.82523752,71203.0,71202.0,0.002946]
[1717562667925,1.75778612,71203.0,71202.0,0.002946]
[1717562668753,1.85778612,71203.0,71202.0,0.002946]
[1717562669237,1.75778612,71203.0,71202.0,0.002946]
[1717562669501,1.8577862,71203.0,71202.0,0.002946]
[1717562673414,1.89972118,71203.0,71202.0,0.002946]
[1717562674166,1.8577862,71203.0,71202.0,0.002946]
[1717562676489,1.7895862,71203.0,71202.0,0.002946]
[1717562676682,1.8577862,71203.0,71202.0,0.002946]
[1717562677319,1.94165617,71203.0,71202.0,0.002946]
[1717562677467,1.92523813,71203.0,71202.0,0.002946]
[1717562677989,2.03057207,71203.0,71202.0,0.002946]
[1717562678511,1.92523813,71203.0,71202.0,0.002946]
[1717562678814,2.03057207,71203.0,71202.0,0.002946]
[1717562680170,2.03056149,71203.0,71202.0,0.002946]
[1717562680600,1.82523813,71203.0,71202.0,0.002946]
[1717562681173,1.59263813,71203.0,71202.0,0.002946]
[1717562683372,1.82403813,71203.0,71202.0,0.002946]
[1717562683576,0.00946327,71203.0,71202.0,0.240846]
[1717562683809,0.004,71203.0,71202.0,0.340846]
[1717562684566,0.004,71203.0,71202.0,0.38265082]
[1717562684738,0.002,71203.0,71202.0,0.38165082]
[1717562684945,0.002,71203.0,71202.0,0.343846]
[1717562685123,0.002,71203.0,71202.0,0.484291]
[1717562685530,0.002,71203.0,71202.0,0.5469482]
[1717562685755,0.42107548,71206.0,71204.0,0.1557]
[1717562685951,0.42107548,71206.0,71205.0,0.3354]
[1717562687021,0.42107548,71206.0,71205.0,0.475839]
[1717562687230,0.42107548,71206.0,71205.0,0.68845793]
[1717562687428,0.42207548,71206.0,71205.0,0.71845793]
[1717562687585,0.42207548,71206.0,71205.0,0.76022743]
[1717562687790,0.42667284,71206.0,71205.0,0.76822743]
[1717562688000,0.42207548,71206.0,71205.0,0.76822743]
[1717562688198,0.42207548,71206.0,71205.0,0.72645793]
[1717562688404,0.42207548,71206.0,71205.0,0.71845793]
[1717562689207,0.42207548,71206.0,71205.0,0.63025793]
[1717562689430,0.42107548,71206.0,71205.0,0.70845793]
[1717562689630,0.42107548,71206.0,71205.0,0.72245793]
[1717562689834,0.42107548,71206.0,71205.0,0.71645793]
[1717562690036,0.42107548,71206.0,71205.0,0.70245793]
[1717562690356,0.42107548,71206.0,71205.0,0.72245793]
[1717562690557,0.42107548,71206.0,71205.0,0.73645793]
[1717562691300,0.42107548,71206.0,71205.0,0.71645793]
[1717562691501,0.42107548,71206.0,71205.0,0.73645793]
[1717562691706,0.42107548,71206.0,71205.0,0.71645793]
[1717562691917,0.42107548,71206.0,71205.0,0.73645793]
[1717562692134,0.42107548,71206.0,71205.0,0.71645793]
[1717562693600,0.42107548,71206.0,71205.0,1.01733693]
[1717562694266,0.42107548,71206.0,71205.0,0.99733693]
[1717562696847,0.42567629,71206.0,71205.0,1.01733693]
[1717562697204,0.42567629,71206.0,71205.0,0.99733693]
[1717562697375,0.42107548,71206.0,71205.0,0.99733693]
[1717562697795,0.42567629,71206.0,71205.0,0.99733693]
[1717562698116,0.42107548,71206.0,71205.0,0.99733693]
[1717562698343,0.42567629,71206.0,71205.0,0.99733693]
[1717562698548,0.42567629,71206.0,71205.0,1.01733693]
[1717562698747,0.42107548,71206.0,71205.0,1.01733693]
[1717562699092,0.42567629,71206.0,71205.0,1.01733693]
[1717562699440,0.42107548,71206.0,71205.0,1.01733693]
[1717562699788,0.42567629,71206.0,71205.0,1.01733693]
[1717562700151,0.42107548,71206.0,71205.0,1.01733693]
[1717562700352,0.42567629,71206.0,71205.0,0.99733693]
[1717562700562,0.42107548,71206.0,71205.0,0.99733693]
[1717562700762,0.42567629,71206.0,71205.0,1.01733693]
[1717562701086,0.42107548,71206.0,71205.0,0.99733693]
[1717562701720,0.42107548,71206.0,71205.0,0.92913693]
[1717562701926,0.42107548,71206.0,71205.0,1.01733693]
[1717562702135,0.42107548,71206.0,71205.0,0.99733693]
[1717562702339,0.42107548,71206.0,71205.0,0.92913693]
[1717562702543,0.42107548,71206.0,71205.0,0.503839]
[1717562702755,0.42567629,71206.0,71205.0,0.572039]
[1717562703358,0.42567629,71206.0,71205.0,0.71645793]
[1717562703507,0.42107548,71206.0,71205.0,0.71645793]
[1717562705199,0.42107548,71206.0,71205.0,0.99733693]
[1717562705451,0.42107548,71206.0,71205.0,1.01733693]
[1717562705671,0.42107548,71206.0,71205.0,1.41547485]
[1717562706252,0.42107548,71206.0,71205.0,1.93785426]
[1717562706449,0.42107548,71206.0,71205.0,1.95864956]
[1717562706824,0.42107548,71206.0,71205.0,1.93064956]
[1717562706993,0.25447548,71206.0,71205.0,1.88235385]
[1717562707235,0.25447548,71206.0,71205.0,1.9794148]
[1717562707434,0.25447548,71206.0,71205.0,1.88235385]
[1717562708009,0.25447548,71206.0,71205.0,1.9378554]
[1717562709474,0.25447548,71206.0,71205.0,1.89635385]
[1717562709680,0.25447548,71206.0,71205.0,1.9378554]
[1717562709995,0.25447548,71206.0,71205.0,1.7378554]
[1717562710198,0.25447548,71206.0,71205.0,1.96265821]
[1717562710547,0.25447548,71206.0,71205.0,1.41547485]
[1717562710767,0.25447548,71206.0,71205.0,1.31547485]
[1717562712704,0.25447548,71206.0,71205.0,1.24727485]
[1717562712954,0.25447548,71206.0,71205.0,1.31547485]
[1717562713268,0.25447548,71206.0,71205.0,1.22727485]
[1717562713472,0.25447548,71206.0,71205.0,0.94639585]
[1717562713679,0.25447548,71206.0,71205.0,0.40981685]
[1717562713921,0.25447548,71206.0,71205.0,0.33011685]
[1717562714239,0.25447548,71206.0,71205.0,0.31611685]
[1717562714479,0.25447548,71206.0,71205.0,0.29885793]
[1717562714692,0.25447548,71206.0,71205.0,0.014]
[1717562714900,0.25447548,71206.0,71205.0,0.028]
[1717562716045,0.25447548,71206.0,71205.0,0.114]
[1717562716444,0.25447548,71206.0,71205.0,0.127]
[1717562716919,0.25447548,71206.0,71205.0,0.113]
[1717562717088,0.25447548,71206.0,71205.0,0.124]
[1717562717304,0.25447548,71206.0,71205.0,0.024]
[1717562717791,0.25447548,71206.0,71205.0,0.035]
[1717562718472,0.25447548,71206.0,71205.0,0.175439]
[1717562718689,0.25447548,71206.0,71205.0,0.275439]
[1717562719495,0.25447548,71206.0,71205.0,0.135]
[1717562720157,0.25842883,71206.0,71205.0,0.135]
[1717562720823,0.25842883,71206.0,71205.0,0.035]
[1717562721782,0.25842883,71206.0,71205.0,0.035946]
[1717562722064,0.25842883,71206.0,71205.0,0.18036493]
[1717562722296,0.25842883,71206.0,71205.0,0.73440393]
[1717562722705,0.25447548,71206.0,71205.0,0.73440393]
[1717562723031,0.25839572,71206.0,71205.0,0.73440393]
[1717562723886,0.25839572,71206.0,71205.0,0.66620393]
[1717562724084,0.25839572,71206.0,71205.0,0.73440393]
[1717562726182,0.25447548,71206.0,71205.0,0.73440393]
[1717562726544,0.25839914,71206.0,71205.0,0.73440393]
[1717562728492,0.25839914,71206.0,71205.0,0.71452949]
[1717562729109,0.25839914,71206.0,71205.0,0.63462949]
[1717562729573,0.25447548,71206.0,71205.0,0.28157156]
[1717562729772,0.33407548,71206.0,71205.0,0.28157156]
[1717562729974,0.33799914,71206.0,71205.0,0.28157156]
[1717562730207,0.49059914,71206.0,71205.0,0.28157156]
[1717562730411,0.49059914,71206.0,71205.0,0.28158244]
[1717562743991,0.49059914,71206.0,71205.0,0.35440368]
[1717562744196,0.49059914,71206.0,71205.0,0.64568871]
[1717562746552,0.49059914,71206.0,71205.0,0.64569571]
[1717562746952,0.49059914,71206.0,71205.0,0.57287447]
[1717562747163,0.49059914,71206.0,71205.0,0.64569684]
[1717562749880,0.49059914,71206.0,71205.0,0.35441181]
[1717562752332,0.81923614,71206.0,71205.0,0.25441181]
[1717562752558,0.81923614,71206.0,71205.0,0.18158944]
[1717562753606,0.81923614,71206.0,71205.0,0.15758944]
[1717562754420,0.81923614,71206.0,71205.0,0.16858944]
[1717562754623,0.81923614,71206.0,71205.0,0.1686111]
[1717562754844,1.10011114,71206.0,71205.0,0.1686111]
[1717562755479,1.10011114,71206.0,71205.0,0.1576111]
[1717562755874,1.10311114,71206.0,71205.0,0.1576111]
[1717562758379,1.10311114,71206.0,71205.0,0.011946]
[1717562758739,1.10311114,71206.0,71205.0,0.15761097]
[1717562760564,1.11958114,71206.0,71205.0,0.15761097]
[1717562761604,1.74487507,71206.0,71205.0,0.15761097]
[1717562761818,1.74487507,71206.0,71205.0,0.011946]
[1717562762024,1.54487507,71206.0,71205.0,0.011946]
[1717562762307,1.74487507,71206.0,71205.0,0.011946]
[1717562762754,1.54187507,71206.0,71205.0,0.011946]
[1717562763121,1.54187507,71206.0,71205.0,0.000946]
[1717562763334,1.74187507,71206.0,71205.0,0.000946]
[1717562763555,1.74187507,71206.0,71205.0,0.001946]
[1717562763930,1.54787507,71206.0,71205.0,0.002946]
[1717562764356,1.74787507,71206.0,71205.0,0.002946]
[1717562764513,1.74187507,71206.0,71205.0,0.001946]
[1717562764718,1.74787507,71206.0,71205.0,0.002946]
[1717562767057,2.02875007,71206.0,71205.0,0.002946]
[1717562769436,2.22875007,71206.0,71205.0,0.002946]
[1717562769573,2.32875007,71206.0,71205.0,0.002946]
[1717562770199,2.32275007,71206.0,71205.0,0.000946]
[1717562770630,2.32875007,71206.0,71205.0,0.001946]
[1717562770826,2.32875007,71206.0,71205.0,0.002946]
[1717562771006,2.32875007,71206.0,71205.0,0.001946]
[1717562771211,2.32275007,71206.0,71205.0,0.000946]
[1717562771422,2.32275007,71206.0,71205.0,0.001946]
[1717562771423,2.36472204,71206.0,71205.0,0.001946]
[1717562771661,2.37072204,71206.0,71205.0,0.002946]
[1717562772067,2.37072199,71206.0,71205.0,0.002946]
[1717562773352,2.32875007,71206.0,71205.0,0.002946]
[1717562774923,2.37072199,71206.0,71205.0,0.002946]
[1717562775186,2.65159699,71206.0,71205.0,0.002946]
[1717562775397,2.60962507,71206.0,71205.0,0.002946]
[1717562777281,0.12,71184.0,71180.0,0.141]
[1717562777479,0.809643,71184.0,71180.0,0.141]
[1717562777696,0.81405467,71184.0,71180.0,0.141]
[1717562777893,0.61405467,71184.0,71180.0,0.141]
[1717562778664,0.81405467,71184.0,71180.0,0.141]
[1717562779072,1.2394356,71184.0,71180.0,0.141]
[1717562779666,1.2394356,71184.0,71183.0,0.002946]
[1717562779835,1.0394356,71184.0,71183.0,0.002946]
[1717562780037,0.9712356,71184.0,71183.0,0.002946]
[1717562780267,1.0394356,71184.0,71183.0,0.001946]
[1717562780470,1.0424356,71184.0,71183.0,0.000946]
[1717562780900,1.0454356,71184.0,71183.0,0.000946]
[1717562781134,0.9572356,71184.0,71183.0,0.000946]
[1717562781339,1.0454356,71184.0,71183.0,0.000946]
[1717562781510,0.7644736,71184.0,71183.0,0.000946]
[1717562781714,0.7444736,71184.0,71183.0,0.000946]
[1717562782169,0.53185467,71184.0,71183.0,0.237546]
[1717562782342,0.60005467,71184.0,71183.0,0.000946]
[1717562784363,0.62005467,71184.0,71183.0,0.000946]
[1717562784568,0.31909267,71184.0,71183.0,0.000946]
[1717562786415,0.25089267,71184.0,71183.0,0.000946]
[1717562786608,0.01041167,71184.0,71183.0,0.236046]
[1717562786811,0.11041167,71184.0,71183.0,0.376528]
[1717562787158,0.006,71184.0,71183.0,0.376528]
[1717562787307,0.006,71184.0,71183.0,0.4493761]
[1717562787308,0.003,71184.0,71183.0,0.4493761]
[1717562787653,0.1,71184.0,71183.0,0.4493761]
[1717562788068,0.380865,71209.0,71187.0,0.140473]
[1717562788069,0.1,71189.0,71187.0,0.140473]
[1717562788269,0.1,71190.0,71189.0,0.3033]
[1717562788663,0.14441893,71204.0,71190.0,0.2351]
[1717562788664,0.1,71191.0,71190.0,0.2351]
[1717562789695,0.1,71194.0,71190.0,0.2351]
[1717562789897,0.1,71191.0,71190.0,0.2351]
[1717562790097,0.1,71194.0,71190.0,0.2351]
[1717562790550,0.101,71191.0,71190.0,0.2351]
[1717562790727,0.102,71191.0,71190.0,0.2361]
[1717562790939,0.101,71191.0,71190.0,0.2361]
[1717562792052,0.1,71191.0,71190.0,0.2351]
[1717562792171,0.1,71191.0,71190.0,0.2361]
[1717562792585,0.1,71191.0,71190.0,0.2351]
[1717562793153,0.102,71191.0,71190.0,0.2361]
[1717562793968,0.102,71191.0,71190.0,0.376569]
[1717562796662,0.102,71191.0,71190.0,0.396569]
[1717562797070,0.002,71191.0,71190.0,0.396569]
[1717562797380,0.1064085,71191.0,71190.0,0.376569]
[1717562797797,0.102,71191.0,71190.0,0.376569]
[1717562798000,0.10641537,71191.0,71190.0,0.376569]
[1717562801435,0.10641537,71191.0,71190.0,0.001]
[1717562815055,0.48558237,71191.0,71190.0,0.001]
[1717562815254,0.56838237,71191.0,71190.0,0.001]
[1717562816022,0.56738237,71191.0,71190.0,0.001]
[1717562816228,0.140481,71184.0,71183.0,0.000946]
[1717562816425,0.240481,71184.0,71183.0,0.000946]
[1717562816635,0.24488089,71184.0,71183.0,0.000946]
[1717562818436,0.48738089,71184.0,71183.0,0.001946]
[1717562818637,0.48838089,71184.0,71183.0,0.001946]
[1717562818848,0.50838089,71184.0,71183.0,0.001946]
[1717562819056,0.50938089,71184.0,71183.0,0.001946]
[1717562819260,0.50838089,71184.0,71183.0,0.000946]
[1717562819463,0.48838089,71184.0,71183.0,0.000946]
[1717562819663,0.48738089,71184.0,71183.0,0.001946]
[1717562819895,0.50738089,71184.0,71183.0,0.001946]
[1717562820191,0.48738089,71184.0,71183.0,0.001946]
[1717562820412,0.26488089,71184.0,71183.0,0.001946]
[1717562820612,0.49728089,71184.0,71183.0,0.001946]
[1717562821375,0.49728089,71184.0,71183.0,0.000946]
[1717562821778,1.12266182,71184.0,71183.0,0.000946]
[1717562821982,0.92266182,71184.0,71183.0,0.000946]
[1717562822586,1.40362382,71184.0,71183.0,0.000946]
[1717562823198,1.41162382,71184.0,71183.0,0.000946]
[1717562823403,1.40762382,71184.0,71183.0,0.000946]
[1717562824155,1.68858582,71184.0,71183.0,0.000946]
[1717562825067,0.922432,71181.0,71180.0,0.14055744]
[1717562825269,1.46265093,71181.0,71180.0,0.14055744]
[1717562825467,1.46692616,71181.0,71180.0,0.14055744]
[1717562826241,1.47592616,71181.0,71180.0,0.14055744]
[1717562826442,0.93575316,71181.0,71180.0,0.14055744]
[1717562826639,1.28492616,71181.0,71180.0,0.14055744]
[1717562827500,1.48492616,71181.0,71180.0,0.14055744]
[1717562831103,1.54940932,71181.0,71180.0,0.14055744]
[1717562831305,1.48492616,71181.0,71180.0,0.14055744]
[1717562835394,1.41672616,71181.0,71180.0,0.14055744]
[1717562835604,1.48492616,71181.0,71180.0,0.14055744]
[1717562844465,1.96589916,71181.0,71180.0,0.14055744]
[1717562844852,1.96589916,71181.0,71180.0,0.12438984]
[1717562844853,2.34687216,71181.0,71180.0,0.12438984]
[1717562845277,2.34687216,71181.0,71180.0,0.08438984]
[1717562845452,2.48557216,71181.0,71180.0,0.08438984]
[1717562845658,2.48557216,71181.0,71180.0,0.03765984]
[1717562845856,2.49957216,71181.0,71180.0,0.03765984]
[1717562846375,2.48557216,71181.0,71180.0,0.03765984]
[1717562846534,2.47657216,71181.0,71180.0,0.03765984]
[1717562846737,2.49057216,71181.0,71180.0,0.03765984]
[1717562846938,2.50457216,71181.0,71180.0,0.03765984]
[1717562847586,2.51857216,71181.0,71180.0,0.03765984]
[1717562847783,2.54395283,71181.0,71180.0,0.03765984]
[1717562848820,2.04707983,71181.0,71180.0,0.03765984]
[1717562848983,2.11527983,71181.0,71180.0,0.03765984]
[1717562854415,2.18270811,71181.0,71180.0,0.03765984]
[1717562856150,2.18270811,71181.0,71180.0,0.03860584]
[1717562856555,2.18356811,71181.0,71180.0,0.03860584]
[1717562857145,2.33126811,71181.0,71180.0,0.03860584]
[1717562858357,2.33126811,71181.0,71180.0,0.00020118]
[1717562859193,2.33110779,71181.0,71180.0,0.00020118]
[1717562859643,2.37309838,71181.0,71180.0,0.00020118]
[1717562860548,2.39410831,71181.0,71180.0,0.00020118]
[1717562861547,2.33110779,71181.0,71180.0,0.00020118]
[1717562863441,2.41510848,71181.0,71180.0,0.00020118]
[1717562863658,1.68760779,71181.0,71180.0,0.00020118]
[1717562863873,1.62017951,71181.0,71180.0,0.00020118]
[1717562864115,1.68837951,71181.0,71180.0,0.00020118]
[1717562865368,1.29479884,71181.0,71180.0,0.00020118]
[1717562865573,1.36299884,71181.0,71180.0,0.00020118]
[1717562866039,1.29479884,71181.0,71180.0,0.00020118]
[1717562866245,1.33499884,71181.0,71180.0,0.00020118]
[1717562866730,1.34899884,71181.0,71180.0,0.00020118]
[1717562866944,1.06802584,71181.0,71180.0,0.00020118]
[1717562867160,1.05402584,71181.0,71180.0,0.00020118]
[1717562867556,1.06802584,71181.0,71180.0,0.00020118]
[1717562868005,0.41804016,71181.0,71180.0,0.00020118]
[1717562868231,0.41804016,71181.0,71180.0,0.24480118]
[1717562869079,0.40404016,71181.0,71180.0,0.24480118]
[1717562869290,0.40404016,71181.0,71180.0,0.00020118]
[1717562869291,1.15402584,71181.0,71180.0,0.00020118]
[1717562869911,1.14002584,71181.0,71180.0,0.00020118]
[1717562872739,1.35302584,71181.0,71180.0,0.00020118]
[1717562872939,1.15302584,71181.0,71180.0,0.00020118]
[1717562873146,1.15602584,71181.0,71180.0,0.00020118]
[1717562873753,1.16902584,71181.0,71180.0,0.00020118]
[1717562874551,1.36902584,71181.0,71180.0,0.00020118]
[1717562875495,1.10082584,71181.0,71180.0,0.00020118]
[1717562875673,1.16902584,71181.0,71180.0,0.00020118]
[1717562875901,1.36902584,71181.0,71180.0,0.00020118]
[1717562876932,1.61262584,71181.0,71180.0,0.00020118]
[1717562877384,1.99359884,71181.0,71180.0,0.00020118]
[1717562877567,2.0567237,71181.0,71180.0,0.00020118]
[1717562879643,1.99359884,71181.0,71180.0,0.00020118]
[1717562880065,1.22230168,71178.0,71177.0,0.000946]
[1717562880291,1.76394885,71178.0,71177.0,0.000946]
[1717562880500,2.19398891,71178.0,71177.0,0.000946]
[1717562880965,2.29921144,71178.0,71177.0,0.000946]
[1717562881586,2.20798891,71178.0,71177.0,0.000946]
[1717562881789,2.31320489,71178.0,71177.0,0.000946]
[1717562882030,2.20798891,71178.0,71177.0,0.000946]
[1717562882280,2.23598891,71178.0,71177.0,0.000946]
[1717562883000,2.38368891,71178.0,71177.0,0.000946]
[1717562883601,2.38612693,71178.0,71177.0,0.000946]
[1717562883801,2.66711193,71178.0,71177.0,0.000946]
[1717562888141,1.69337068,71172.0,71171.0,0.009471]
[1717562888365,2.25018961,71172.0,71171.0,0.009471]
[1717562888563,2.53744761,71172.0,71171.0,0.009471]
[1717562889380,2.55144761,71172.0,71171.0,0.009471]
[1717562891025,2.53744761,71172.0,71171.0,0.009471]
[1717562891427,2.54895946,71172.0,71171.0,0.009471]
[1717562891626,2.55144075,71172.0,71171.0,0.009471]
[1717562892048,2.57944075,71172.0,71171.0,0.009471]
[1717562893169,2.64251921,71172.0,71171.0,0.009471]
[1717562893565,0.82249968,71158.0,71157.0,0.2345]
[1717562893766,1.11358098,71158.0,71157.0,0.2345]
[1717562894991,1.1027413,71158.0,71157.0,0.2345]
[1717562895157,1.13058098,71158.0,71157.0,0.2345]
[1717562896153,0.68924906,71158.0,71157.0,0.2345]
[1717562896392,0.75744906,71158.0,71157.0,0.2345]
[1717562896602,0.77728874,71158.0,71157.0,0.2345]
[1717562897059,0.77508536,71158.0,71157.0,0.2345]
[1717562897933,0.79236003,71158.0,71157.0,0.0795]
[1717562898772,0.70432035,71158.0,71157.0,0.0795]
[1717562898908,0.77252035,71158.0,71157.0,0.2329]
[1717562899306,0.79236003,71158.0,71157.0,0.2329]
[1717562900800,0.11983968,71156.0,71155.0,0.009471]
[1717562900990,0.68988775,71156.0,71155.0,0.009471]
[1717562902187,0.69688775,71156.0,71155.0,0.009471]
[1717562904096,0.70288775,71156.0,71155.0,0.009471]
[1717562905051,0.90288775,71156.0,71155.0,0.009471]
[1717562905260,0.70288775,71156.0,71155.0,0.009471]
[1717562906984,1.28395975,71156.0,71155.0,0.009471]
[1717562907225,1.43525975,71156.0,71155.0,0.009471]
[1717562907775,1.42825975,71156.0,71155.0,0.009471]
[1717562908172,1.90033175,71156.0,71155.0,0.009471]
[1717562908486,1.91433175,71156.0,71155.0,0.009471]
[1717562908835,1.90733175,71156.0,71155.0,0.009471]
[1717562909073,1.77003175,71156.0,71155.0,0.009471]
[1717562910564,1.75603175,71156.0,71155.0,0.009471]
[1717562911359,1.77003175,71156.0,71155.0,0.009471]
[1717562911947,0.69804807,71156.0,71155.0,0.009471]
[1717562912196,0.43681575,71156.0,71155.0,0.242371]
[1717562912372,0.71386661,71156.0,71155.0,0.242371]
[1717562912574,0.78688153,71156.0,71155.0,0.242371]
[1717562912752,0.76704185,71156.0,71155.0,0.242371]
[1717562912957,0.78854716,71156.0,71155.0,0.009471]
[1717562914398,0.72034716,71156.0,71155.0,0.009471]
[1717562914647,0.78854716,71156.0,71155.0,0.009471]
[1717562922743,0.95424716,71156.0,71155.0,0.009471]
[1717562923977,0.78854716,71156.0,71155.0,0.009471]
[1717562925032,1.06961916,71156.0,71155.0,0.009471]
[1717562927425,1.11172697,71156.0,71155.0,0.009471]
[1717562928385,1.87247493,71156.0,71155.0,0.009471]
[1717562928567,1.61369551,71156.0,71155.0,0.009471]
[1717562928803,1.71369551,71156.0,71155.0,0.009471]
[1717562928973,1.91369551,71156.0,71155.0,0.009471]
[1717562932486,0.1,71137.0,71136.0,0.1609]
[1717562932687,0.47303161,71137.0,71136.0,0.1609]
[1717562932888,0.45966354,71137.0,71136.0,0.1609]
[1717562933089,0.45966354,71137.0,71136.0,0.2377]
[1717562933658,0.46266354,71137.0,71136.0,0.2377]
[1717562933992,0.39446354,71137.0,71136.0,0.2377]
[1717562934423,0.46466354,71137.0,71136.0,0.2377]
[1717562935530,0.46466354,71137.0,71136.0,0.23786032]
[1717562936340,0.25204461,71137.0,71136.0,0.23775932]
[1717562936494,0.25204461,71137.0,71136.0,0.237599]
[1717562936703,0.25204461,71137.0,71136.0,0.23775932]
[1717562937104,0.24904461,71137.0,71136.0,0.23775932]
[1717562937327,0.24704461,71137.0,71136.0,0.23775932]
[1717562940697,0.10647161,71137.0,71136.0,0.23775932]
[1717562942323,0.10647161,71137.0,71136.0,0.25855396]
[1717562942527,0.10647161,71137.0,71136.0,0.25871428]